[Event "45th FIDE Olympiad 2024"]
[Site "Budapest"]
[Date "2024.09.18"]
[Round "7.18"]
[White "Van Foreest, Jorden"]
[Black "Sarana, Alexey"]
[Result "1/2-1/2"]
[ECO "D73"]
[WhiteElo "2696"]
[BlackElo "2713"]
[Annotator "TA"]
[PlyCount "82"]
[EventDate "2024.09.05"]
[EventType "team-tourn"]
[EventCountry "HUN"]
[SourceTitle "playchess.com"]
[Source "ChessBase"]
[SourceQuality "1"]
[WhiteTeam "Netherlands"]
[BlackTeam "Serbia"]
[WhiteTeamCountry "NED"]
[BlackTeamCountry "SRB"]
[TimeControl "40/5400+30:1800+30"]

{[%evp 26,82,76,67,96,85,85,58,79,59,96,95,96,76,102,101,95,108,152,156,156,146,153,143,134,79,95,88,87,53,51,0,37,33,52,-353,-349,-337,-351,-383,-382,-377,-325,-340,-229,-507,-50,-138,-104,-134,-34,-44,-23,-87,-47,-44,0,-2,352]} 1. Nf3 {[%emt 0:00:05]} d5 {[%emt 0:01:15]} 2. g3 {[%emt 0:00:47]} g6 {[%emt 0:00:31]} 3. Bg2 {[%emt 0:00:23]} Bg7 {[%emt 0:00:07]} 4. d4 {[%emt 0:00:50]} c6 {[%emt 0:00:35]} 5. O-O {[%emt 0:00:25]} Nf6 {[%emt 0:00:28]} 6. c4 {[%emt 0:01:48]} O-O {[%emt 0:00:34]} 7. a4 {[%emt 0:00:39]} dxc4 {[%emt 0:03:54]} 8. Na3 {[%emt 0:02:36] D73: Fianchetto Grünfeld: 5 Nf3 .} Na6 {[%emt 0:00:31]} 9. Nxc4 {[%emt 0:00:37]} Be6 {[%emt 0:00:21]} 10. b3 {[%emt 0:02:47]} Bd5 {[%emt 0:02:56]} 11. Ba3 {[%emt 0:04:22]} Rc8 {[%emt 0:03:01]} 12. Rc1 {[%emt 0:04:19]} Nc7 {[%emt 0:12:35]} 13. e3 $146 {[%emt 0:02:36]} ({Predecessor:} 13. Ne3 Be4 14. Bh3 Ne6 15. Nd2 Rc7 16. Nxe4 Nxe4 17. Bxe6 fxe6 18. Qc2 Nd6 19. Rfd1 {½-½ Satici,A (2147)-Pekin,T (2191) TUR-ch email 2007}) 13... Nce8 {[%emt 0:01:23]} 14. Bh3 {[%emt 0:06:02]} Rb8 {[%emt 0:01:52]} 15. Nfe5 {[%emt 0:01:57]} Nc7 {[%emt 0:00:08]} 16. Qe2 {[%emt 0:02:30]} Re8 {[%emt 0:01:36]} 17. Rfd1 {[%emt 0:01:07]} Be6 {[%emt 0:02:53]} 18. Bg2 {[%emt 0:04:00]} Nd7 {[%emt 0:00:08]} 19. Nf3 {[%emt 0:05:29]} Nb6 {[%emt 0:02:36]} 20. Ng5 {[%emt 0:03:01]} Bxc4 {[%emt 0:03:24]} 21. bxc4 {[%emt 0:00:05]} e5 {[%emt 0:00:11]} 22. Nxf7 {[%emt 0:04:30]} Kxf7 {[%emt 0:01:54]} 23. dxe5 {[%emt 0:00:17]} Qc8 {[%emt 0:00:07]} 24. a5 {[%emt 0:03:10]} Nd7 {[%emt 0:00:55]} 25. Bh3 {[%emt 0:01:34]} ({Better is} 25. f4) 25... Ne6 $16 {[%emt 0:00:19]} 26. f4 {[%emt 0:00:09]} c5 {[%emt 0:06:50]} 27. Rd6 {[%emt 0:02:34]} Ndf8 $1 {[%emt 0:01:53]} 28. Bb2 {[%emt 0:16:35]} (28. Qd2 $14) 28... Kg8 {[%emt 0:07:46]} (28... Nxf4 $5 29. e6+ (29. exf4 $2 Qxh3 30. Bc3 Ne6 $19) 29... N8xe6 30. exf4 (30. gxf4 Nxf4 31. Rf1 Qxh3 $11) 30... Nxf4 $11) 29. Bg2 {[%emt 0:00:36]} Qc7 {[%emt 0:05:10]} 30. g4 $2 {[%emt 0:00:04][%mdl 8192]} (30. Qd2 $14 {keeps the upper hand.}) 30... Nxf4 $1 $19 {[%emt 0:01:30]} (30... Rbd8 31. f5 $16) 31. exf4 {[%emt 0:13:40]} Qxd6 {[%emt 0:00:22]} (31... Qxa5 $2 32. f5 (32. Bd5+ Kh8 $18) 32... h6 33. f6 $18 (33. fxg6 Re7 $18)) 32. Bd5+ {[%emt 0:00:06]} Kh8 {[%emt 0:00:07]} 33. Re1 {[%emt 0:02:15]} Qc7 {[%emt 0:01:43]} 34. f5 {[%emt 0:00:33]} Rbd8 {[%emt 0:08:27]} (34... Qxa5 35. e6 $17) 35. Bc3 $2 {[%emt 0:03:37] [#]} (35. e6 gxf5 (35... Qxa5 $2 36. f6 $18) 36. e7 Rxe7 (36... Qxa5 37. exf8=Q+ Rxf8 38. Bxg7+ Kxg7 39. Qe7+ Kh8 40. Qe5+) 37. Qxe7 Qxe7 (37... Qxa5 38. Bxg7#) 38. Rxe7 Bxb2 39. Rxb7 Bd4+ 40. Kg2) 35... h6 $2 {[%emt 0:06:01]} (35... Nd7 $1 $19 36. a6 bxa6 (36... Bxe5 $2 37. axb7 gxf5 38. g5 $19)) 36. Qe3 {[%emt 0:02:48]} (36. Qf2 $15) 36... Kh7 {[%emt 0:04:04]} (36... Qd7 $6 37. Rf1 $11) 37. Kh1 {[%emt 0:01:44]} Qe7 {[%emt 0:03:04]} (37... b6 $17 {White must now prevent ...b5.} 38. Qe4 Rd7 (38... bxa5 39. fxg6+ Nxg6 40. h4 $19)) 38. Qf3 {[%emt 0:00:39]} Qh4 {[%emt 0:00:22]} (38... Nd7 $5 39. f6 (39. Bxb7 $2 {is the wrong capture.} Nxe5 40. Bxe5 Bxe5 $19) 39... Bxf6 40. exf6 Qxe1+ 41. Bxe1 Rxe1+ 42. Kg2 Rde8 $11) 39. Re4 {[%emt 0:00:40]} (39. Re2 $1 $11 {keeps the balance.}) 39... Nd7 {[%emt 0:03:08]} 40. f6 $1 {[%emt 0:00:49]} Rf8 {[%emt 0:10:25]} (40... Bh8 $5 41. e6 (41. Bxb7 $2 {perishes.} Qg5 $19) 41... Nxf6 $11) 41. Qe2 {[%emt 0:10:01] [#]} Nxe5 $4 {[%emt 0:09:31][%mdl 8192]} (41... Nxf6 $1 $11 {and Black has nothing to worry.} 42. exf6 Bxf6) 1/2-1/2

[Event "45th FIDE Olympiad 2024"]
[Site "Budapest"]
[Date "2024.09.18"]
[Round "7.18"]
[White "Carpenter, Paul A"]
[Black "Mohamed, Hassan"]
[Result "1/2-1/2"]
[WhiteElo "1985"]
[BlackElo "1880"]
[PlyCount "93"]
[EventDate "2024.09.05"]
[EventType "team-tourn"]
[EventCountry "HUN"]
[WhiteTeam "Jersey"]
[BlackTeam "Maldives"]
[BlackTeamCountry "MDV"]
[TimeControl "40/5400+30:1800+30"]

1. b3 e5 2. Bb2 Nc6 3. d3 d5 4. e3 Nf6 5. Nd2 a5 6. a3 Bg4 7. Ne2 Bc5 8. h3 Be6 9. g3 Qe7 10. Bg2 O-O 11. O-O Rad8 12. Kh2 Nd7 13. f4 f5 14. fxe5 Bxe3 15. d4 g5 16. Rf3 f4 17. gxf4 Bxf4+ 18. Nxf4 gxf4 19. Qe1 Rf7 20. Qf2 Kh8 21. Rxf4 Rxf4 22. Qxf4 Rf8 23. Qe3 Qg7 24. Rg1 Rg8 25. c4 Ne7 26. Bxd5 Qxg1+ 27. Qxg1 Rxg1 28. Kxg1 Nxd5 29. cxd5 Bxh3 30. e6 Nb6 31. e7 Bd7 32. d6 cxd6 33. Ne4 Nd5 34. Nxd6 Nxe7 35. Nxb7 Kg8 36. Nxa5 Kf7 37. Nc4 Ke6 38. a4 Bc6 39. Ne5 Be4 40. a5 h5 41. Bc3 Nf5 42. a6 Kd6 43. Kf2 h4 44. Nf7+ Kc6 45. Nd8+ Kb6 46. Ne6 Bd5 47. Nf4 1/2-1/2

[Event "45th FIDE Olympiad 2024"]
[Site "Budapest"]
[Date "2024.09.18"]
[Round "7.19"]
[White "Indjic, Aleksandar"]
[Black "Warmerdam, Max"]
[Result "1-0"]
[ECO "D27"]
[WhiteElo "2611"]
[BlackElo "2679"]
[Annotator "TA"]
[PlyCount "63"]
[EventDate "2024.09.05"]
[EventType "team-tourn"]
[EventCountry "HUN"]
[SourceTitle "playchess.com"]
[Source "ChessBase"]
[SourceQuality "1"]
[WhiteTeam "Serbia"]
[BlackTeam "Netherlands"]
[WhiteTeamCountry "SRB"]
[BlackTeamCountry "NED"]
[TimeControl "40/5400+30:1800+30"]

{[%evp 18,63,0,-15,-1,-13,0,0,0,0,0,0,0,0,0,0,0,-6,0,0,0,0,0,0,0,-30,-32,-56,-58,-118,0,-87,179,191,169,150,360,399,411,403,385,375,991,975,871,871,833,833]} 1. d4 {[%emt 0:01:08]} d5 {[%emt 0:00:06]} 2. c4 {[%emt 0:00:34]} e6 {[%emt 0:00:06]} 3. Nc3 {[%emt 0:00:22]} c5 {[%emt 0:00:09]} 4. e3 {[%emt 0:02:57]} Nf6 {[%emt 0:00:07]} 5. Nf3 {[%emt 0:00:07]} a6 {[%emt 0:00:07]} 6. a3 {[%emt 0:06:10]} dxc4 {[%emt 0:00:26]} 7. Bxc4 {[%emt 0:00:07]} b5 {[%emt 0:00:04]} 8. Ba2 {[%emt 0:00:09]} Bb7 {[%emt 0:00:07]} 9. O-O {[%emt 0:00:05]} Nbd7 {[%emt 0:00:23]} 10. Qe2 {[%emt 0:11:47]} Bd6 {[%emt 0:03:50]} 11. Rd1 {[%emt 0:02:08]} Qb8 {[%emt 0:00:19]} 12. h3 {[%emt 0:05:40]} O-O {[%emt 0:06:05] The position is equal.} 13. dxc5 {[%emt 0:02:17]} Nxc5 {[%emt 0:01:52]} 14. b4 {[%emt 0:00:07]} Ncd7 {[%emt 0:01:18]} 15. Bb2 {[%emt 0:00:23]} Ne5 {[%emt 0:01:39]} 16. Nxe5 {[%emt 0:15:32]} Bxe5 {[%emt 0:00:29]} 17. Rd3 {[%emt 0:00:12]} Bc6 {[%emt 0:07:21]} 18. Rad1 {[%emt 0:02:43]} a5 {[%emt 0:03:49]} 19. Bb1 {[%emt 0:09:40]} axb4 {[%emt 0:06:42]} 20. axb4 {[%emt 0:00:39]} Rc8 {[%emt 0:04:20]} 21. f4 {[%emt 0:08:38]} Bc7 {[%emt 0:04:20]} 22. g4 {[%emt 0:03:41]} Bb6 {[%emt 0:07:33]} 23. g5 {[%emt 0:09:05]} (23. Qf2 $15) 23... Ne4 {[%emt 0:04:17]} (23... Qxf4 $1 $17 24. gxf6 Qg3+ 25. Kf1 Bf3 (25... Qxh3+ 26. Ke1 $17)) 24. Qg4 {[%emt 0:00:11]} (24. Nxe4 $11 Bxe4 25. Be5) 24... Qa7 $2 {[%emt 0:02:57][%mdl 8192]} (24... g6 $17 {White must now prevent ...Qb7.} 25. Qh4 Nxc3 26. Rxc3 Bd5) 25. Nxe4 $18 {[%emt 0:06:50]} Bxe4 {[%emt 0:01:06]} 26. Rd7 $36 {[%emt 0:00:07][%mdl 2048] White has strong initiative.} Bxe3+ $2 {[%emt 0:00:43] [#] A mistake that costs the game.} (26... Bc7 $16 {was called for.} 27. Bd4 (27. Bxe4 $2 {loses.} Qxe3+ 28. Kf1 Qxe4 $19) 27... Qb7) 27. Kf1 $1 {[%emt 0:00:04]} Qxd7 {[%emt 0:01:25]} 28. Rxd7 {[%emt 0:00:05]} Bxb1 {[%emt 0:00:06] [#]} 29. Qf3 $1 {[%emt 0:00:12]} Ra2 $2 {[%emt 0:18:14] [#]} (29... Bc1) 30. Qd1 $1 {[%emt 0:02:16] White wants to mate with Rd8+. White is clearly winning.} Raa8 {[%emt 0:03:16]} 31. Qxb1 {[%emt 0:00:07] Qe4 is the strong threat.} Bxf4 {[%emt 0:00:04]} 32. h4 {[%emt 0:00:49] Weighted Error Value: White=0.10 (very precise) /Black=0.44.  Loses game:     	---       	Black=2      Mistake:       	White=2     	Black=2      Inaccurate:     	White=1     	---        OK:         	White=6     	Black=8      Best:        	White=3     	---        Strong:       	White=2     	---} 1-0

[Event "45th FIDE Olympiad 2024"]
[Site "Budapest"]
[Date "2024.09.18"]
[Round "7.19"]
[White "Hussain, Nimal"]
[Black "Belzo, Krzysztof"]
[Result "1-0"]
[WhiteElo "1805"]
[BlackElo "2076"]
[PlyCount "83"]
[EventDate "2024.09.05"]
[EventType "team-tourn"]
[EventCountry "HUN"]
[WhiteTeam "Maldives"]
[BlackTeam "Jersey"]
[WhiteTeamCountry "MDV"]
[TimeControl "40/5400+30:1800+30"]

1. d4 c5 2. Nf3 cxd4 3. Nxd4 Nc6 4. e4 g6 5. Bc4 Bg7 6. c3 d6 7. Be3 Nf6 8. Nd2 O-O 9. O-O Ng4 10. Nc2 Nxe3 11. Nxe3 Ne5 12. Be2 Bd7 13. Nf3 Bc6 14. Qc2 Nxf3+ 15. Bxf3 Qa5 16. Rfd1 Ba4 17. b3 Bc6 18. Rac1 Qe5 19. Qd3 Rac8 20. Nc4 Qg5 21. Rc2 b6 22. Qe3 Qh4 23. g3 Qh3 24. Qf4 h5 25. Bg2 Qe6 26. Qd2 b5 27. Na5 Bxe4 28. Bxe4 Qxe4 29. Re1 Qf3 30. Re3 Qf6 31. Qe2 a6 32. Rxe7 Rxc3 33. Rd2 Rc1+ 34. Kg2 Qc3 35. Nb7 Bf6 36. Re3 Qc6+ 37. Qf3 Bg5 38. Rxd6 Qc7 39. Red3 a5 40. Qd5 Qe7 41. Rxg6+ Kh7 42. Rxg5 1-0

[Event "45th FIDE Olympiad 2024"]
[Site "Budapest"]
[Date "2024.09.18"]
[Round "7.20"]
[White "L'ami, Erwin"]
[Black "Ivic, Velimir"]
[Result "0-1"]
[ECO "E04"]
[WhiteElo "2628"]
[BlackElo "2599"]
[Annotator "TA"]
[PlyCount "80"]
[EventDate "2024.09.05"]
[EventType "team-tourn"]
[EventCountry "HUN"]
[SourceTitle "playchess.com"]
[Source "ChessBase"]
[SourceQuality "1"]
[WhiteTeam "Netherlands"]
[BlackTeam "Serbia"]
[WhiteTeamCountry "NED"]
[BlackTeamCountry "SRB"]
[TimeControl "40/5400+30:1800+30"]

{[%evp 14,80,31,41,52,61,42,74,78,31,29,0,0,-43,-5,-64,-45,-60,-59,-69,-56,-61,-48,-104,-97,-108,-84,-117,-133,-147,-139,-157,-162,-182,-210,-214,-178,-197,-227,-256,-264,-267,-233,-296,-295,-312,-295,-577,-590,-587,-582,-706,-688,-716,-721,-749,-830,-1295,-1132,-1306,-1285,-1286,-1282,-1042,-856,-839,-825,-839,-809]} 1. d4 {[%emt 0:00:03]} Nf6 {[%emt 0:00:24]} 2. c4 {[%emt 0:00:09]} e6 {[%emt 0:00:13]} 3. Nf3 {[%emt 0:00:50]} d5 {[%emt 0:00:23]} 4. g3 {[%emt 0:00:42]} dxc4 {[%emt 0:00:29]} 5. Bg2 {[%emt 0:00:19]} a6 {[%emt 0:00:27]} 6. O-O {[%emt 0:01:51]} Nc6 {[%emt 0:00:32]} 7. e3 {[%emt 0:05:52][%cal Be2e3,Be3e4][%mdl 32]} Rb8 {[%emt 0:00:46]} 8. Nfd2 {[%emt 0:03:04]} e5 {[%emt 0:00:51]} 9. Bxc6+ {[%emt 0:00:19]} bxc6 {[%emt 0:00:04]} 10. dxe5 {[%emt 0:00:10]} Nd5 {[%emt 0:00:25][%cal Bf6d5,Bd5b4,Bb4d3][%mdl 32] White is better.} 11. Nxc4 {[%emt 0:19:12]} (11. Qe2 $16) 11... Bh3 $14 {[%emt 0:01:51]} 12. e4 {[%emt 0:02:20]} Bxf1 {[%emt 0:11:39]} 13. Kxf1 {[%emt 0:00:46]} Nb4 {[%emt 0:04:25]} 14. Qxd8+ {[%emt 0:02:51]} (14. Qe2 $1 $11) 14... Rxd8 $15 {[%emt 0:00:14]} 15. Nc3 {[%emt 0:02:54] Prevents Rd1+} Bc5 {[%emt 0:10:36]} 16. Bg5 {[%emt 0:12:21]} Rd7 {[%emt 0:04:01]} 17. Na4 {[%emt 0:07:46]} Ba7 {[%emt 0:02:34]} 18. Bd2 {[%emt 0:13:53] Black keeps a firm grip on the game.} (18. f3 $15) 18... Nd3 $17 {[%emt 0:02:33]} 19. f4 {[%emt 0:02:05] [#]} g5 $1 {[%emt 0:08:22][%mdl 512]} 20. Bc3 {[%emt 0:03:45] [#] Black must now prevent e6.} (20. f5 Nxe5) 20... Bd4 $1 {[%emt 0:03:57]} (20... gxf4 $2 21. e6 Rd4 22. Bxd4 Bxd4 23. Rd1 fxg3 24. Rxd3 $18) 21. f5 {[%emt 0:03:29]} O-O {[%emt 0:12:05] Black is more active.} 22. Ke2 {[%emt 0:01:56]} Bxc3 {[%emt 0:07:44]} 23. bxc3 {[%emt 0:03:20]} Re8 {[%emt 0:01:20]} 24. Rb1 {[%emt 0:03:33]} Nxe5 {[%emt 0:01:26]} 25. Nc5 {[%emt 0:00:07] [#] Threatens to win with Nxe5.} Rdd8 $1 {[%emt 0:00:42]} 26. Rb4 {[%emt 0:00:50] [#]} a5 $1 {[%emt 0:04:03]} 27. Ra4 {[%emt 0:03:19] [#]} Rd5 {[%emt 0:04:07][%mdl 512]} 28. Nxe5 {[%emt 0:03:05]} (28. exd5 Nxc4+) 28... Rdxe5 {[%emt 0:01:55]} ({Don't play} 28... Rexe5 29. Nd3 Re8 30. Kd2 $17) ({Don't take} 28... Rxc5 29. Ng4 Kg7 (29... Rxc3 30. Kd2 $11) 30. Kd3) 29. Rxa5 {[%emt 0:00:07]} Rxf5 $19 {[%emt 0:00:23][%mdl 4096] Endgame. aiming for ...Rxe4+. KRR-KRN} 30. a4 $2 {[%emt 0:01:10]} (30. Kd3 Rf3+ 31. Kc4) 30... Rxe4+ {[%emt 0:00:39] Black is clearly winning.} 31. Kd3 {[%emt 0:00:21]} Rg4 {[%emt 0:07:50]} 32. Ra8+ {[%emt 0:02:21]} Kg7 {[%emt 0:00:02]} 33. Nb3 {[%emt 0:00:28]} Rf3+ {[%emt 0:00:15]} 34. Kd2 {[%emt 0:00:27]} Rf2+ {[%emt 0:01:26]} 35. Ke3 {[%emt 0:00:09]} Rxh2 {[%emt 0:00:26]} 36. Kf3 {[%emt 0:00:52]} Rc4 {[%emt 0:00:22]} 37. Nd4 {[%emt 0:00:05]} Rxc3+ {[%emt 0:01:27]} 38. Ke4 {[%emt 0:00:02]} Rc4 {[%emt 0:02:11]} (38... Rxg3 39. Nf5+ Kf6 40. Nxg3 $11) 39. Kd3 {[%emt 0:00:35] Dodges Rd2+} Rc1 {[%emt 0:00:26]} 40. a5 {[%emt 0:00:57]} Ra2 {[%emt 0:00:32] Weighted Error Value: White=0.45/Black=0.05 (flawless) .  Mistake:       	White=4     	---        Inaccurate:     	White=3     	Black=1      OK:         	White=9     	Black=7      Best:        	---       	Black=4      Strong:       	---       	Black=2} 0-1

[Event "45th FIDE Olympiad 2024"]
[Site "Budapest"]
[Date "2024.09.18"]
[Round "7.20"]
[White "Forbes, Garry"]
[Black "Abdul Rahman, Ali"]
[Result "1/2-1/2"]
[WhiteElo "1858"]
[BlackElo "1844"]
[PlyCount "45"]
[EventDate "2024.09.05"]
[EventType "team-tourn"]
[EventCountry "HUN"]
[WhiteTeam "Jersey"]
[BlackTeam "Maldives"]
[BlackTeamCountry "MDV"]
[TimeControl "40/5400+30:1800+30"]

1. c4 e6 2. g3 d5 3. Bg2 Nf6 4. Nf3 c6 5. O-O Bd6 6. d4 Ne4 7. Nfd2 f5 8. Nxe4 fxe4 9. f3 exf3 10. Rxf3 Nd7 11. Rf1 Nf6 12. c5 Be7 13. Nc3 O-O 14. e4 dxe4 15. Nxe4 Nxe4 16. Rxf8+ Bxf8 17. Bxe4 g6 18. Bf4 Bg7 19. Be5 Qg5 20. Bf4 Qd8 21. Be5 Qg5 22. Bf4 Qd8 23. Be5 1/2-1/2

[Event "45th FIDE Olympiad 2024"]
[Site "Budapest"]
[Date "2024.09.18"]
[Round "7.21"]
[White "Martirosyan, Haik M."]
[Black "Vitiugov, Nikita"]
[Result "1-0"]
[ECO "D27"]
[WhiteElo "2667"]
[BlackElo "2676"]
[Annotator "TA"]
[PlyCount "69"]
[EventDate "2024.09.05"]
[EventType "team-tourn"]
[EventCountry "HUN"]
[SourceTitle "playchess.com"]
[Source "ChessBase"]
[SourceQuality "1"]
[WhiteTeam "Armenia"]
[BlackTeam "England"]
[WhiteTeamCountry "ARM"]
[BlackTeamCountry "ENG"]
[TimeControl "40/5400+30:1800+30"]

{[%evp 19,69,8,22,14,8,10,7,16,12,16,93,99,93,93,143,147,178,180,182,181,174,186,214,202,195,153,197,199,218,229,213,190,231,204,227,209,216,209,280,272,267,167,267,272,338,336,364,322,472,469,457,427]} 1. d4 {[%emt 0:00:03]} Nf6 {[%emt 0:00:10]} 2. c4 {[%emt 0:00:10]} e6 {[%emt 0:00:30]} 3. Nf3 {[%emt 0:00:10]} d5 {[%emt 0:00:18]} 4. Nc3 {[%emt 0:00:18]} dxc4 {[%emt 0:00:39]} 5. e3 {[%emt 0:03:42]} a6 {[%emt 0:00:49]} 6. a4 {[%emt 0:01:01]} c5 {[%emt 0:01:08]} 7. Bxc4 {[%emt 0:00:20]} Nc6 {[%emt 0:00:29]} 8. O-O {[%emt 0:01:58]} Be7 {[%emt 0:00:48]} 9. dxc5 {[%emt 0:04:30]} Qxd1 {[%emt 0:01:06]} 10. Rxd1 {[%emt 0:00:55]} Bxc5 {[%emt 0:00:07]} 11. Nd2 {[%emt 0:02:09][%cal Bf3d2,Bd2c4,Bc4b6][%mdl 32]} Bb4 {[%emt 0:13:07]} 12. Be2 {[%emt 0:02:36]} Na5 {[%emt 0:05:31]} 13. Rb1 {[%emt 0:07:59] The position is equal.} Bd7 {[%emt 0:03:59]} 14. Na2 {[%emt 0:02:21]} Be7 {[%emt 0:04:03]} (14... Bxd2 $1 $11 {remains equal.} 15. Bxd2 Nb3) 15. b4 $16 {[%emt 0:03:12]} Nc6 {[%emt 0:00:07][%cal Ba5c6,Bc6e5,Be5g6][%mdl 32]} 16. Nc4 {[%emt 0:17:43]} Nd5 {[%emt 0:04:25] [#] Prevents Nb6.} ({Better is} 16... e5) 17. e4 $1 $36 {[%emt 0:00:13][%mdl 2048] White has strong initiative.} Nf6 {[%emt 0:23:26]} 18. Nb6 {[%emt 0:04:46]} Rd8 {[%emt 0:00:49]} 19. b5 {[%emt 0:00:31]} axb5 {[%emt 0:00:44]} 20. axb5 {[%emt 0:00:13] aiming for Nxd7.} Ne5 {[%emt 0:06:22] [#]} 21. Nc3 {[%emt 0:16:37] Bf4 would now be deadly.} Bc8 {[%emt 0:08:30]} 22. Bf4 {[%emt 0:07:04]} Ng6 {[%emt 0:03:03]} 23. Bc7 {[%emt 0:01:28]} Rxd1+ {[%emt 0:00:51]} 24. Rxd1 {[%emt 0:00:03]} (24. Bxd1 $6 Bd8 25. Bxd8 Kxd8 $16) 24... O-O {[%emt 0:00:48]} 25. e5 {[%emt 0:02:40]} Nd5 {[%emt 0:05:15]} 26. Ncxd5 {[%emt 0:00:05]} exd5 {[%emt 0:00:04]} 27. Nxc8 {[%emt 0:05:59]} (27. Rxd5 Nf4 28. Rd2 Nxe2+ 29. Rxe2 Bc5 $14) 27... Rxc8 {[%emt 0:00:06]} 28. b6 {[%emt 0:00:12]} Bc5 {[%emt 0:06:28]} 29. g3 {[%emt 0:01:26] Repels Nf4} (29. Rxd5 Bxb6 30. Bxb6 Nf4 $14) 29... Ne7 {[%emt 0:00:49]} 30. Bf3 {[%emt 0:05:05]} Kf8 {[%emt 0:01:04]} (30... Ra8 $142 31. Bxd5 Nxd5) 31. Ra1 $18 {[%emt 0:02:04] Ra5 is the strong threat.} (31. Bxd5 $6 Nxd5 32. Rxd5 Be7 $16) 31... f5 {[%emt 0:01:59]} 32. Ra5 {[%emt 0:00:53]} ({Not} 32. Ra7 $2 Rxc7 33. bxc7 Bxa7 $19) 32... Bd4 {[%emt 0:00:44]} 33. Bxd5 {[%emt 0:01:51]} ({Don't blunder} 33. Ra7 $2 Rxc7 34. bxc7 Bxa7 $19) 33... Bc3 {[%emt 0:00:19]} (33... Nxd5 {keeps fighting.} 34. Rxd5 Bb2) 34. Rc5 {[%emt 0:00:33]} Bb4 {[%emt 0:02:52]} 35. Rc4 {[%emt 0:00:33] Black got outplayed after the opening.   Weighted Error Value: White=0.07 (flawless) /Black=0.30.  Mistake:       	---       	Black=4      Inaccurate:     	White=1     	Black=1      OK:         	White=13    	Black=11     Best:        	White=4     	---        Strong:       	White=1     	---} ({Less strong is} 35. Rb5 Nxd5 36. Rxd5 Ke7 $16) 1-0

[Event "45th FIDE Olympiad 2024"]
[Site "Budapest"]
[Date "2024.09.18"]
[Round "7.21"]
[White "Mahamat, Hachim Bachar"]
[Black "Gabriel, Davidson"]
[Result "0-1"]
[WhiteElo "1872"]
[BlackElo "2043"]
[PlyCount "90"]
[EventDate "2024.09.05"]
[EventType "team-tourn"]
[EventCountry "HUN"]
[WhiteTeam "Chad"]
[BlackTeam "Haiti"]
[WhiteTeamCountry "CHD"]
[BlackTeamCountry "HAI"]
[TimeControl "40/5400+30:1800+30"]

1. e4 c5 2. g3 d5 3. Bg2 dxe4 4. Bxe4 Nf6 5. Bg2 Nc6 6. Ne2 h5 7. d3 h4 8. Bg5 h3 9. Bf3 Ne5 10. Nf4 Qd4 11. Nc3 Nxf3+ 12. Qxf3 Qe5+ 13. Ne4 Nxe4 14. Qxe4 Qxg5 15. Nd5 Kd8 16. Ne3 Qg6 17. Qd5+ Kc7 18. Qxc5+ Qc6 19. Nd5+ Kb8 20. Qxc6 bxc6 21. Nb4 Kc7 22. d4 e5 23. Nd3 exd4 24. O-O Bf5 25. Rad1 Bd6 26. Ne1 c5 27. b4 Rhe8 28. bxc5 Bxc5 29. Nd3 Bxd3 30. Rxd3 Re2 31. c3 Rxa2 32. cxd4 Bb6 33. g4 Rh8 34. f4 Rg2+ 35. Kh1 Rxg4 36. d5 Rh6 37. Rc1+ Kd7 38. f5 Rh5 39. d6 Rhg5 40. Rdd1 Rg1+ 41. Rxg1 Rxg1+ 42. Rxg1 Bxg1 43. Kxg1 Kxd6 44. Kf2 a5 45. Kg3 a4 {0-} 0-1